[Event "FIDE WCCC Girls-12 2024"]
[Site "Montesilvano"]
[Date "2024.11.18"]
[Round "3.22"]
[White "Ivaschenko, Anna"]
[Black "Mrad, Anahid"]
[Result "1-0"]
[ECO "E04"]
[WhiteElo "1732"]
[BlackElo "1558"]
[PlyCount "49"]
[EventDate "2024.11.18"]
[EventType "swiss"]
[EventCountry "ITA"]
[TimeControl "5400+30"]

1. d4 {[%emt 0:00:02]} d5 {[%emt 0:00:05]} 2. c4 {[%emt 0:00:04]} e6 {[%emt 0:00:09]} 3. Nf3 {[%emt 0:00:05]} a6 {[%emt 0:00:06]} 4. g3 {[%emt 0:03:56]} dxc4 {[%emt 0:00:06]} 5. Bg2 {[%emt 0:00:23]} b5 {[%emt 0:00:08]} 6. O-O {[%emt 0:01:17]} Nf6 {[%emt 0:02:38]} 7. a4 {[%emt 0:01:24]} Bd7 {[%emt 0:04:58]} 8. axb5 {[%emt 0:08:01]} Bxb5 {[%emt 0:02:41]} 9. Nc3 {[%emt 0:01:38]} Bc6 {[%emt 0:01:53]} 10. Ne5 {[%emt 0:06:24]} Bxg2 {[%emt 0:02:03]} 11. Kxg2 {[%emt 0:05:09]} Nd5 {[%emt 0:03:04]} 12. Qa4+ {[%emt 0:04:11]} Nd7 {[%emt 0:01:44]} 13. Nxd5 {[%emt 0:00:36]} exd5 {[%emt 0:01:16]} 14. Qc6 {[%emt 0:00:39]} Rb8 {[%emt 0:07:37]} 15. Qxd5 {[%emt 0:04:55]} Nxe5 {[%emt 0:00:42]} 16. Qxe5+ {[%emt 0:00:13]} Be7 {[%emt 0:01:34]} 17. Qxg7 {[%emt 0:01:22]} Bf6 {[%emt 0:01:09]} 18. Qg4 {[%emt 0:00:47]} Qd5+ {[%emt 0:03:15]} 19. Qf3 {[%emt 0:03:24]} Qxd4 {[%emt 0:05:47]} 20. Rxa6 {[%emt 0:02:36]} Be5 {[%emt 0:04:36]} 21. Qc6+ {[%emt 0:04:32]} Ke7 {[%emt 0:03:48]} 22. Be3 {[%emt 0:03:16]} Qxb2 {[%emt 0:06:04]} 23. Bc5+ {[%emt 0:00:22]} Kd8 {[%emt 0:02:21]} 24. Rd1+ {[%emt 0:00:30]} Kc8 {[%emt 0:01:21]} 25. Qd7+ {[%emt 0:01:38]} 1-0

[Event "FIDE WCCC Girls-12 2024"]
[Site "Montesilvano"]
[Date "2024.11.18"]
[Round "3.24"]
[White "Budhram, Kaylee"]
[Black "Li, Peishan"]
[Result "0-1"]
[ECO "E18"]
[WhiteElo "1614"]
[BlackElo "1729"]
[PlyCount "250"]
[EventDate "2024.11.18"]
[EventType "swiss"]
[EventCountry "ITA"]
[TimeControl "5400+30"]

1. d4 {[%emt 0:00:03]} Nf6 {[%emt 0:00:07]} 2. c4 {[%emt 0:00:16]} e6 {[%emt 0:00:06]} 3. Nf3 {[%emt 0:00:11]} Be7 {[%emt 0:00:07]} 4. g3 {[%emt 0:00:14]} O-O {[%emt 0:00:06]} 5. Bg2 {[%emt 0:00:04]} d5 {[%emt 0:00:05]} 6. O-O {[%emt 0:00:14]} b6 {[%emt 0:00:09]} 7. Nc3 {[%emt 0:00:19]} Bb7 {[%emt 0:00:06]} 8. Ne5 {[%emt 0:00:14]} c5 {[%emt 1:33:44]} 9. e3 {[%emt 0:05:49]} Nbd7 {[%emt 0:00:00]} 10. cxd5 {[%emt 0:06:26]} exd5 {[%emt 0:01:00]} 11. Qa4 {[%emt 0:02:07]} cxd4 {[%emt 0:00:00]} 12. exd4 {[%emt 0:00:43]} Nxe5 {[%emt 0:00:00]} 13. dxe5 {[%emt 0:00:25]} Nd7 {[%emt 0:00:00]} 14. Nxd5 {[%emt 0:01:25]} Nxe5 {[%emt 0:00:00]} 15. Rd1 {[%emt 0:15:40]} Qe8 {[%emt 0:00:00]} 16. Qxe8 {[%emt 0:11:05]} Raxe8 {[%emt 0:00:00]} 17. Nxe7+ {[%emt 0:19:27]} Rxe7 {[%emt 0:00:00]} 18. Bf4 {[%emt 0:01:03]} Bxg2 {[%emt 0:00:00]} 19. Kxg2 {[%emt 0:34:15]} Rfe8 {[%emt 0:00:00]} 20. Bxe5 {[%emt 0:00:00]} Rxe5 {[%emt 0:00:00]} 21. Rac1 {[%emt 0:00:00]} R5e7 {[%emt 0:00:00]} 22. b3 {[%emt 0:00:00]} f6 {[%emt 0:00:00]} 23. Rc2 {[%emt 0:00:00]} Kf7 {[%emt 0:00:00]} 24. h4 {[%emt 0:00:00]} g6 {[%emt 0:00:00]} 25. Kf3 {[%emt 0:00:00]} Rb7 {[%emt 0:00:00]} 26. Rcd2 {[%emt 0:00:00]} Ree7 {[%emt 0:00:00]} 27. Rc2 {[%emt 0:00:00]} Rb8 {[%emt 0:00:00]} 28. Kg2 {[%emt 0:00:00]} Kg7 {[%emt 0:00:00]} 29. Kf3 {[%emt 0:00:00]} Rbb7 {[%emt 0:00:00]} 30. Kg2 {[%emt 0:00:00]} Kh6 {[%emt 0:00:00]} 31. Kf3 {[%emt 0:00:00]} Re5 {[%emt 0:00:00]} 32. Rc6 {[%emt 0:00:00]} Rf5+ {[%emt 0:00:00]} 33. Kg2 {[%emt 0:00:00]} Re7 {[%emt 0:00:00]} 34. Rc2 {[%emt 0:00:00]} Rfe5 {[%emt 0:00:00]} 35. Kf3 {[%emt 0:00:00]} Ra5 {[%emt 0:00:00]} 36. a4 {[%emt 0:00:00]} Rf5+ {[%emt 0:00:00]} 37. Kg2 {[%emt 0:00:00]} Rfe5 {[%emt 0:00:00]} 38. Rd6 {[%emt 0:00:00]} Kg7 {[%emt 0:00:00]} 39. Rd3 {[%emt 0:01:15]} Re1 {[%emt 0:00:00]} 40. Rcd2 {[%emt 0:01:00]} Kf7 {[%emt 0:00:00]} 41. Rd7 {[%emt 0:01:42]} Rb1 {[%emt 0:00:00]} 42. Rxe7+ {[%emt 0:00:40]} Kxe7 {[%emt 0:00:00]} 43. Rd3 {[%emt 0:00:14]} Rb2 {[%emt 0:00:00]} 44. Kf3 {[%emt 0:00:24]} Ke6 {[%emt 0:00:00]} 45. Ke3 {[%emt 0:01:24]} Ke5 {[%emt 0:00:00]} 46. f4+ {[%emt 0:00:48]} Ke6 {[%emt 0:00:00]} 47. Kf3 {[%emt 0:00:52]} Rc2 {[%emt 0:00:00]} 48. Ke3 {[%emt 0:00:53]} Rc1 {[%emt 0:00:00]} 49. Kd2 {[%emt 0:00:51]} Rc5 {[%emt 0:00:00]} 50. Ke3 {[%emt 0:00:34]} f5 {[%emt 0:00:00]} 51. Kf3 {[%emt 0:00:12]} a6 {[%emt 0:02:28]} 52. Ke3 {[%emt 0:02:18]} Rc2 {[%emt 0:03:01]} 53. Kf3 {[%emt 0:00:54]} Rc1 {[%emt 0:00:26]} 54. Kf2 {[%emt 0:00:32]} Ke7 {[%emt 0:00:27]} 55. Kg2 {[%emt 0:00:20]} Re1 {[%emt 0:00:53]} 56. Kf2 {[%emt 0:00:12]} Rc1 {[%emt 0:00:59]} 57. Kg2 {[%emt 0:00:09]} Ke6 {[%emt 0:00:04]} 58. Kf2 {[%emt 0:00:06]} Rc5 {[%emt 0:00:14]} 59. Ke3 {[%emt 0:00:13]} Rc7 {[%emt 0:00:51]} 60. Kf3 {[%emt 0:01:11]} Rb7 {[%emt 0:01:03]} 61. Ke3 {[%emt 0:00:41]} Rc7 {[%emt 0:00:54]} 62. Kf3 {[%emt 0:00:12]} Rc6 {[%emt 0:00:08]} 63. Ke3 {[%emt 0:00:13]} Rc5 {[%emt 0:00:03]} 64. Kf3 {[%emt 0:00:17]} Rd5 {[%emt 0:00:19]} 65. Re3+ {[%emt 0:01:50]} Kd6 {[%emt 0:00:06]} 66. Rc3 {[%emt 0:00:10]} Rc5 {[%emt 0:00:24]} 67. Rd3+ {[%emt 0:00:30]} Kc6 {[%emt 0:00:08]} 68. Ke3 {[%emt 0:00:17]} b5 {[%emt 0:02:10]} 69. axb5+ Kxb5 {[%emt 0:00:07]} 70. Kd4 {[%emt 0:01:35]} Rc7 {[%emt 0:00:40]} 71. Ke3 {[%emt 0:00:14]} Kb4 {[%emt 0:00:15]} 72. Kd2 {[%emt 0:01:27]} a5 {[%emt 0:00:36]} 73. Rd5 {[%emt 0:01:44]} Rc6 {[%emt 0:01:51]} 74. Rd3 {[%emt 0:00:29]} Rc5 {[%emt 0:05:37]} 75. Re3 {[%emt 0:01:04]} Rc6 {[%emt 0:02:16]} 76. Rd3 {[%emt 0:00:11]} Rc8 {[%emt 0:01:08]} 77. Re3 {[%emt 0:00:07]} Rc7 {[%emt 0:00:05]} 78. Rd3 {[%emt 0:00:04]} Ka3 {[%emt 0:02:46]} 79. Rc3 {[%emt 0:00:08]} Rxc3 {[%emt 0:02:28]} 80. Kxc3 {[%emt 0:00:06]} Ka2 {[%emt 0:00:14]} 81. b4 {[%emt 0:01:02]} axb4+ {[%emt 0:00:27]} 82. Kxb4 {[%emt 0:00:05]} Kb2 {[%emt 0:00:02]} 83. Kc4 {[%emt 0:01:21]} Kc2 {[%emt 0:00:05]} 84. Kd5 {[%emt 0:00:30]} Kd3 {[%emt 0:00:06]} 85. h5 {[%emt 0:00:58]} Ke3 {[%emt 0:00:04]} 86. Ke5 {[%emt 0:00:49]} Kf3 {[%emt 0:00:07]} 87. h6 {[%emt 0:01:12]} Kxg3 {[%emt 0:00:06]} 88. Kf6 {[%emt 0:00:00]} Kxf4 {[%emt 0:00:08]} 89. Kg7 {[%emt 0:00:00]} g5 {[%emt 0:00:05]} 90. Kxh7 {[%emt 0:00:00]} g4 {[%emt 0:00:02]} 91. Kg6 {[%emt 0:00:00]} g3 {[%emt 0:00:03]} 92. h7 {[%emt 0:00:00]} g2 {[%emt 0:00:03]} 93. h8=Q {[%emt 0:00:00]} g1=Q+ {[%emt 0:00:04]} 94. Kf7 {[%emt 0:00:02]} Qa7+ {[%emt 0:00:10]} 95. Ke6 {[%emt 0:00:13]} Qb6+ {[%emt 0:00:59]} 96. Kf7 {[%emt 0:00:20]} Qc7+ {[%emt 0:00:34]} 97. Kg6 {[%emt 0:00:28]} Qc6+ {[%emt 0:00:45]} 98. Kf7 {[%emt 0:00:08]} Qd7+ {[%emt 0:00:05]} 99. Kg6 {[%emt 0:00:29]} Qe6+ {[%emt 0:00:33]} 100. Kh5 {[%emt 0:00:30]} Qf7+ {[%emt 0:00:10]} 101. Kh6 {[%emt 0:00:41]} Qe6+ {[%emt 0:01:54]} 102. Kh5 {[%emt 0:00:20]} Qe2+ {[%emt 0:00:39]} 103. Kg6 {[%emt 0:00:16]} Qg4+ {[%emt 0:00:21]} 104. Kf7 {[%emt 0:00:27]} Kg3 {[%emt 0:00:16]} 105. Qc3+ {[%emt 0:00:26]} Qf3 {[%emt 0:00:31]} 106. Qe1+ {[%emt 0:01:04]} Kh3 {[%emt 0:00:59]} 107. Qe6 {[%emt 0:01:10]} Qh5+ {[%emt 0:01:28]} 108. Ke7 {[%emt 0:00:10]} Qg4 {[%emt 0:00:36]} 109. Qe3+ {[%emt 0:00:52]} Qg3 {[%emt 0:00:36]} 110. Qh6+ {[%emt 0:00:24]} Qh4+ {[%emt 0:00:07]} 111. Qf6 {[%emt 0:00:29]} Qxf6+ {[%emt 0:00:05]} 112. Kxf6 {[%emt 0:00:03]} f4 {[%emt 0:00:05]} 113. Ke5 {[%emt 0:00:10]} f3 {[%emt 0:00:04]} 114. Ke4 {[%emt 0:00:03]} f2 {[%emt 0:00:07]} 115. Kd5 {[%emt 0:00:04]} f1=Q {[%emt 0:00:08]} 116. Kc6 {[%emt 0:00:06]} Qd3 {[%emt 0:00:06]} 117. Kc7 {[%emt 0:00:08]} Qg6 {[%emt 0:00:07]} 118. Kd7 {[%emt 0:00:05]} Kg4 {[%emt 0:00:04]} 119. Kc7 {[%emt 0:00:06]} Kf5 {[%emt 0:00:06]} 120. Kb7 {[%emt 0:00:07]} Ke5 {[%emt 0:00:05]} 121. Ka7 {[%emt 0:00:09]} Kd5 {[%emt 0:00:06]} 122. Kb7 {[%emt 0:00:03]} Qc6+ {[%emt 0:00:10]} 123. Kb8 {[%emt 0:00:14]} Qd7 {[%emt 0:00:04]} 124. Ka8 {[%emt 0:00:12]} Kc6 {[%emt 0:00:03]} 125. Kb8 {[%emt 0:00:05]} Qb7# {[%emt 0:11:24]} 0-1

[Event "FIDE WCCC Girls-12 2024"]
[Site "Montesilvano"]
[Date "2024.11.18"]
[Round "3.25"]
[White "Ribreau, Anna"]
[Black "Liang, Candice"]
[Result "1-0"]
[ECO "A36"]
[WhiteElo "1726"]
[BlackElo "1551"]
[PlyCount "99"]
[EventDate "2024.11.18"]
[EventType "swiss"]
[EventCountry "ITA"]
[TimeControl "5400+30"]

1. e4 {[%emt 0:00:06]} c5 {[%emt 0:01:34]} 2. c4 {[%emt 0:00:35]} Nc6 {[%emt 0:00:16]} 3. Nc3 {[%emt 0:00:33]} g6 {[%emt 0:00:17]} 4. g3 {[%emt 0:00:22]} Bg7 {[%emt 0:00:21]} 5. Bg2 {[%emt 0:01:05]} Nf6 {[%emt 0:00:26]} 6. Nge2 {[%emt 0:01:02]} O-O {[%emt 0:00:34]} 7. O-O {[%emt 0:01:02]} d6 {[%emt 0:01:01]} 8. d3 {[%emt 0:00:56]} Bg4 {[%emt 0:01:34]} 9. f3 {[%emt 0:01:27]} Be6 {[%emt 0:01:53]} 10. Be3 {[%emt 0:01:57]} a6 {[%emt 0:00:50]} 11. h3 {[%emt 0:03:10]} Rb8 {[%emt 0:01:11]} 12. f4 {[%emt 0:01:17]} b5 {[%emt 0:00:50]} 13. e5 {[%emt 0:03:58]} Nd7 {[%emt 0:12:19]} 14. Bxc6 {[%emt 0:00:50]} Bxh3 {[%emt 0:00:23]} 15. Bg2 {[%emt 0:00:27]} Bxg2 {[%emt 0:00:35]} 16. Kxg2 {[%emt 0:00:05]} dxe5 {[%emt 0:00:36]} 17. fxe5 {[%emt 0:02:01]} Nxe5 {[%emt 0:05:28]} 18. cxb5 {[%emt 0:03:18]} axb5 {[%emt 0:06:59]} 19. Bf4 {[%emt 0:10:40]} Ng4 {[%emt 0:10:26]} 20. Qd2 {[%emt 0:07:43]} e5 {[%emt 0:01:46]} 21. Be3 {[%emt 0:00:53]} b4 {[%emt 0:02:24]} 22. Ne4 {[%emt 0:01:30]} Qd5 {[%emt 0:04:02]} 23. Kg1 {[%emt 0:03:27]} Rbc8 {[%emt 0:06:10]} 24. Nf2 {[%emt 0:15:42]} Nf6 {[%emt 0:06:34]} 25. Bh6 {[%emt 0:06:34]} Rfe8 {[%emt 0:07:47]} 26. Bxg7 {[%emt 0:03:31]} Kxg7 {[%emt 0:00:04]} 27. Qc2 {[%emt 0:04:33]} Nh5 {[%emt 0:01:18]} 28. Qc4 {[%emt 0:04:49]} Qc6 {[%emt 0:06:45]} 29. Ne4 {[%emt 0:04:38]} f5 {[%emt 0:02:43]} 30. Ng5 {[%emt 0:00:49]} Rc7 {[%emt 0:02:43]} 31. g4 {[%emt 0:05:27]} h6 {[%emt 0:02:05]} 32. gxh5 {[%emt 0:01:03]} hxg5 {[%emt 0:00:10]} 33. hxg6 {[%emt 0:01:57]} Kxg6 {[%emt 0:00:06]} 34. Ng3 {[%emt 0:00:41]} f4 {[%emt 0:04:45]} 35. Ne4 {[%emt 0:01:18]} g4 {[%emt 0:03:02]} 36. Qc2 {[%emt 0:01:43]} g3 {[%emt 0:01:59]} 37. Qe2 {[%emt 0:01:44]} Qd7 {[%emt 0:00:25]} 38. Kg2 {[%emt 0:01:33]} Rh8 {[%emt 0:00:49]} 39. Rh1 {[%emt 0:00:11]} Rcc8 {[%emt 0:02:43]} 40. Rxh8 {[%emt 0:03:22]} Rxh8 {[%emt 0:00:05]} 41. Rh1 {[%emt 0:00:17]} Rxh1 {[%emt 0:01:17]} 42. Kxh1 {[%emt 0:00:04]} Qh3+ {[%emt 0:00:20]} 43. Kg1 {[%emt 0:00:06]} Kf5 {[%emt 0:01:37]} 44. Nxc5 {[%emt 0:00:40]} Qh8 {[%emt 0:01:11]} 45. Qe4+ {[%emt 0:00:30]} Kg4 {[%emt 0:00:42]} 46. Qe2+ {[%emt 0:01:15]} Kf5 {[%emt 0:00:16]} 47. a4 {[%emt 0:00:51]} bxa3 {[%emt 0:00:31]} 48. bxa3 {[%emt 0:00:07]} Qb8 {[%emt 0:01:01]} 49. Qh5+ {[%emt 0:00:13]} Kf6 {[%emt 0:00:44]} 50. Nd7+ {[%emt 0:00:06]} 1-0

[Event "FIDE WCCC Girls-12 2024"]
[Site "Montesilvano"]
[Date "2024.11.18"]
[Round "3.26"]
[White "Telyuk, Anastasiya"]
[Black "Xikmatkhonova, Mokhinur"]
[Result "1-0"]
[ECO "A31"]
[WhiteElo "1603"]
[BlackElo "1726"]
[PlyCount "139"]
[EventDate "2024.11.18"]
[EventType "swiss"]
[EventCountry "ITA"]
[TimeControl "5400+30"]

1. e4 {[%emt 0:00:04]} c5 {[%emt 0:00:07]} 2. Nf3 {[%emt 0:00:11]} e6 {[%emt 0:00:06]} 3. d4 {[%emt 0:00:06]} cxd4 {[%emt 0:00:06]} 4. Nxd4 {[%emt 0:00:07]} a6 {[%emt 0:00:03]} 5. c4 {[%emt 0:00:14]} Nf6 {[%emt 0:00:06]} 6. Nc3 {[%emt 0:00:12]} Qc7 {[%emt 0:00:08]} 7. a3 {[%emt 0:00:15]} b6 {[%emt 0:00:06]} 8. Be3 {[%emt 0:00:25]} Bb7 {[%emt 0:00:17]} 9. f3 {[%emt 0:00:21]} Be7 {[%emt 0:00:17]} 10. Be2 {[%emt 0:00:37]} d6 {[%emt 0:00:29]} 11. Rc1 {[%emt 0:00:19]} Nbd7 {[%emt 0:00:08]} 12. O-O {[%emt 0:00:31]} O-O {[%emt 0:00:49]} 13. Qd2 {[%emt 0:00:12]} Rac8 {[%emt 0:00:26]} 14. Rfd1 {[%emt 0:00:30]} Rfe8 {[%emt 0:00:19]} 15. b4 {[%emt 0:00:58]} Qb8 {[%emt 0:00:30]} 16. Nb3 {[%emt 0:03:25]} Bd8 {[%emt 0:11:07]} 17. Bf1 {[%emt 0:02:23]} Bc7 {[%emt 0:01:10]} 18. Bf4 {[%emt 0:00:14]} Ne5 {[%emt 0:00:33]} 19. Bxe5 {[%emt 0:00:22]} dxe5 {[%emt 0:00:02]} 20. c5 {[%emt 0:02:37]} Rcd8 {[%emt 0:28:45]} 21. Qe2 {[%emt 0:01:30]} a5 {[%emt 0:10:48]} 22. Na4 {[%emt 0:08:51]} Qa7 {[%emt 0:04:08]} 23. Rxd8 {[%emt 0:05:59]} Rxd8 {[%emt 0:07:06]} 24. Qb5 {[%emt 0:01:40]} bxc5 {[%emt 0:03:32]} 25. Qxc5 {[%emt 0:00:43]} Bb8 {[%emt 0:11:05]} 26. Nxa5 {[%emt 0:01:30]} Nd7 {[%emt 0:04:12]} 27. Qxa7 {[%emt 0:01:38]} Bxa7+ {[%emt 0:00:04]} 28. Kh1 {[%emt 0:00:27]} Ba8 {[%emt 0:00:55]} 29. Bb5 {[%emt 0:03:33]} Nf6 {[%emt 0:00:55]} 30. Nc5 {[%emt 0:05:10]} g5 {[%emt 0:01:55]} 31. Bc6 {[%emt 0:02:05]} Bxc5 {[%emt 0:01:46]} 32. bxc5 {[%emt 0:00:27]} Bxc6 {[%emt 0:02:49]} 33. Nxc6 {[%emt 0:00:06]} Ra8 {[%emt 0:00:59]} 34. Nxe5 {[%emt 0:03:34]} Rxa3 {[%emt 0:01:02]} 35. c6 {[%emt 0:00:44]} Ne8 {[%emt 0:01:12]} 36. h4 {[%emt 0:01:13]} Ra5 {[%emt 0:04:36]} 37. Ng4 {[%emt 0:07:35]} Nc7 {[%emt 0:00:28]} 38. hxg5 {[%emt 0:01:45]} Rxg5 {[%emt 0:05:35]} 39. e5 {[%emt 0:00:34]} Kg7 {[%emt 0:00:45]} 40. Rc5 {[%emt 0:02:39]} Rf5 {[%emt 0:00:31]} 41. Nf6 {[%emt 0:03:05]} Kf8 {[%emt 0:00:29]} 42. Nxh7+ {[%emt 0:02:34]} Ke7 {[%emt 0:00:05]} 43. Nf6 {[%emt 0:00:32]} Rf4 {[%emt 0:00:16]} 44. Ne4 {[%emt 0:00:57]} Rh4+ {[%emt 0:00:19]} 45. Kg1 {[%emt 0:00:07]} Rh8 {[%emt 0:00:35]} 46. Ra5 {[%emt 0:00:32]} Ra8 {[%emt 0:01:15]} 47. Rxa8 {[%emt 0:00:21]} Nxa8 {[%emt 0:00:00]} 48. Kf2 {[%emt 0:00:30]} Kd8 {[%emt 0:00:37]} 49. Ke3 {[%emt 0:00:26]} Kc7 {[%emt 0:00:15]} 50. Ng5 {[%emt 0:00:07]} Kxc6 {[%emt 0:00:16]} 51. Nxf7 {[%emt 0:00:05]} Nb6 {[%emt 0:00:45]} 52. g4 {[%emt 0:00:32]} Kd7 {[%emt 0:00:56]} 53. f4 {[%emt 0:01:24]} Nd5+ {[%emt 0:00:25]} 54. Ke4 {[%emt 0:00:36]} Nc3+ {[%emt 0:00:47]} 55. Kd4 {[%emt 0:01:00]} Nb5+ {[%emt 0:00:29]} 56. Kc5 {[%emt 0:00:54]} Nc3 {[%emt 0:00:01]} 57. Kd4 {[%emt 0:02:21]} Ne2+ {[%emt 0:00:42]} 58. Ke3 {[%emt 0:00:11]} Nc3 {[%emt 0:00:10]} 59. Ng5 {[%emt 0:00:45]} Nd5+ {[%emt 0:01:05]} 60. Ke4 {[%emt 0:00:11]} Nc3+ {[%emt 0:00:22]} 61. Kd3 {[%emt 0:00:16]} Nd5 {[%emt 0:00:04]} 62. f5 {[%emt 0:00:28]} exf5 {[%emt 0:00:53]} 63. gxf5 {[%emt 0:00:04]} Nf4+ {[%emt 0:00:45]} 64. Ke4 {[%emt 0:00:11]} Nh5 {[%emt 0:00:28]} 65. f6 {[%emt 0:00:28]} Ke8 {[%emt 0:00:24]} 66. Kf3 {[%emt 0:00:40]} Kf8 {[%emt 0:00:38]} 67. Kg4 {[%emt 0:00:06]} Nxf6+ {[%emt 0:00:29]} 68. exf6 {[%emt 0:00:05]} Kg8 {[%emt 0:00:04]} 69. Kf5 {[%emt 0:00:07]} Kf8 {[%emt 0:00:02]} 70. Ke6 {[%emt 0:00:06]} 1-0

[Event "FIDE WCCC Girls-12 2024"]
[Site "Montesilvano"]
[Date "2024.11.18"]
[Round "3.27"]
[White "Oksanen, Maria"]
[Black "Li, Yeeshuen"]
[Result "1-0"]
[ECO "C78"]
[WhiteElo "1725"]
[BlackElo "1546"]
[PlyCount "75"]
[EventDate "2024.11.18"]
[EventType "swiss"]
[EventCountry "ITA"]
[TimeControl "5400+30"]

1. e4 {[%emt 0:00:03]} e5 {[%emt 0:00:08]} 2. Nf3 {[%emt 0:00:09]} Nc6 {[%emt 0:00:06]} 3. Bb5 {[%emt 0:00:07]} a6 {[%emt 0:00:09]} 4. Ba4 {[%emt 0:00:08]} Nf6 {[%emt 0:00:11]} 5. O-O {[%emt 0:00:10]} b5 {[%emt 0:00:12]} 6. Bb3 {[%emt 0:00:05]} Bc5 {[%emt 0:00:18]} 7. c3 {[%emt 0:00:13]} O-O {[%emt 0:01:08]} 8. Re1 {[%emt 0:00:25]} d6 {[%emt 0:01:09]} 9. d4 {[%emt 0:00:56]} exd4 {[%emt 0:02:12]} 10. cxd4 {[%emt 0:00:21]} Bb6 {[%emt 0:00:21]} 11. Bg5 {[%emt 0:00:36]} h6 {[%emt 0:01:05]} 12. Bxf6 {[%emt 0:02:36]} Qxf6 {[%emt 0:00:52]} 13. Bd5 {[%emt 0:00:21]} Bb7 {[%emt 0:02:29]} 14. Qc1 {[%emt 0:02:06]} Nd8 {[%emt 0:01:05]} 15. Bxb7 {[%emt 0:00:55]} Nxb7 {[%emt 0:00:10]} 16. Nc3 {[%emt 0:00:13]} c5 {[%emt 0:06:46]} 17. Rd1 {[%emt 0:03:39]} Rac8 {[%emt 0:05:11]} 18. Nd5 {[%emt 0:03:11]} Qd8 {[%emt 0:00:17]} 19. Qf4 {[%emt 0:03:40]} Na5 {[%emt 0:07:45]} 20. e5 {[%emt 1:20:36]} cxd4 {[%emt 0:04:48]} 21. exd6 {[%emt 0:00:00]} Bc5 {[%emt 0:03:33]} 22. Ne7+ {[%emt 0:00:00]} Kh8 {[%emt 0:00:18]} 23. Nxc8 {[%emt 0:00:00]} Qxc8 {[%emt 0:00:35]} 24. Nxd4 {[%emt 0:00:00]} Nc4 {[%emt 0:01:31]} 25. Nf5 {[%emt 0:00:00]} Qe6 {[%emt 0:04:17]} 26. Re1 {[%emt 0:00:00]} Qf6 {[%emt 0:00:52]} 27. d7 {[%emt 0:00:00]} Nd6 {[%emt 0:08:34]} 28. Qe5 {[%emt 0:00:00]} Qxf5 {[%emt 0:10:19]} 29. Qxf5 {[%emt 0:00:00]} Nxf5 {[%emt 0:00:09]} 30. Re8 {[%emt 0:00:00]} Rg8 {[%emt 0:01:23]} 31. Rxg8+ {[%emt 0:00:00]} Kxg8 {[%emt 0:00:08]} 32. d8=Q+ {[%emt 0:00:00]} Kh7 {[%emt 0:00:12]} 33. Qd5 {[%emt 0:00:00]} Bxf2+ {[%emt 0:00:16]} 34. Kxf2 {[%emt 0:00:00]} g6 {[%emt 0:00:14]} 35. Qxf7+ {[%emt 0:00:00]} Kh8 {[%emt 0:00:08]} 36. Rd1 {[%emt 0:00:00]} Ng7 {[%emt 0:00:10]} 37. Rd7 {[%emt 0:00:00]} Kh7 {[%emt 0:00:12]} 38. Qxg7# {[%emt 0:09:00]} 1-0

[Event "FIDE WCCC Girls-12 2024"]
[Site "Montesilvano"]
[Date "2024.11.18"]
[Round "3.28"]
[White "Tsinjoviniavo, Aina Mahasambatra"]
[Black "Zavivaeva, Angelina"]
[Result "0-1"]
[ECO "B14"]
[WhiteElo "1716"]
[BlackElo "1499"]
[PlyCount "94"]
[EventDate "2024.11.18"]
[EventType "swiss"]
[EventCountry "ITA"]
[TimeControl "5400+30"]

1. e4 {[%emt 0:00:30]} c6 {[%emt 0:00:05]} 2. c4 {[%emt 0:00:30]} d5 {[%emt 0:00:04]} 3. cxd5 {[%emt 0:00:15]} cxd5 {[%emt 0:00:06]} 4. exd5 {[%emt 0:00:27]} Nf6 {[%emt 0:01:39]} 5. Nc3 {[%emt 0:02:08]} Nxd5 {[%emt 0:10:37]} 6. Nf3 {[%emt 0:02:42]} e6 {[%emt 0:02:46]} 7. d4 {[%emt 0:04:35]} Bb4 {[%emt 0:03:43]} 8. Qc2 {[%emt 0:05:37]} O-O {[%emt 0:02:36]} 9. Bd3 {[%emt 0:00:18]} h6 {[%emt 0:00:41]} 10. O-O {[%emt 0:02:02]} Nc6 {[%emt 0:00:13]} 11. Rd1 {[%emt 0:14:03]} Qf6 {[%emt 0:13:14]} 12. Ne4 {[%emt 0:02:13]} Qe7 {[%emt 0:02:30]} 13. Ng3 {[%emt 0:14:54]} Bd7 {[%emt 0:07:08]} 14. Qe2 {[%emt 0:18:32]} Rac8 {[%emt 0:02:07]} 15. Be4 {[%emt 0:05:45]} Rfe8 {[%emt 0:08:53]} 16. Ne5 {[%emt 0:04:12]} a6 {[%emt 0:05:45]} 17. a4 {[%emt 0:08:00]} Bd6 {[%emt 0:08:37]} 18. Nxd7 {[%emt 0:00:29]} Qxd7 {[%emt 0:00:04]} 19. Bxh6 {[%emt 0:02:22]} Bxg3 {[%emt 0:05:20]} 20. Qg4 {[%emt 0:01:05]} Bxf2+ {[%emt 0:07:41]} 21. Kxf2 {[%emt 0:00:02]} f5 {[%emt 0:00:17]} 22. Qg3 {[%emt 0:01:34]} fxe4 {[%emt 0:00:18]} 23. Bg5 {[%emt 0:00:56]} Rf8+ {[%emt 0:02:08]} 24. Kg1 {[%emt 0:00:23]} Rf5 {[%emt 0:01:28]} 25. Re1 {[%emt 0:00:21]} Rcf8 {[%emt 0:05:19]} 26. Rxe4 {[%emt 0:00:46]} Ndb4 {[%emt 0:01:37]} 27. Rc1 {[%emt 0:01:19]} Qd5 {[%emt 0:02:40]} 28. Bh6 {[%emt 0:01:08]} R8f7 {[%emt 0:01:59]} 29. Rg4 {[%emt 0:00:40]} Qd7 {[%emt 0:00:15]} 30. h4 {[%emt 0:04:59]} Kh8 {[%emt 0:01:36]} 31. Rd1 {[%emt 0:01:55]} Nd5 {[%emt 0:01:51]} 32. Re1 {[%emt 0:00:26]} Nf6 {[%emt 0:00:52]} 33. Rg6 {[%emt 0:00:33]} gxh6 {[%emt 0:01:21]} 34. Rxh6+ {[%emt 0:00:02]} Rh7 {[%emt 0:00:26]} 35. Rxf6 {[%emt 0:01:32]} Qxd4+ {[%emt 0:01:18]} 36. Re3 {[%emt 0:00:21]} Qxf6 {[%emt 0:00:12]} 37. Re1 {[%emt 0:00:23]} Qd4+ {[%emt 0:00:39]} 38. Qe3 {[%emt 0:00:30]} Qxe3+ {[%emt 0:00:47]} 39. Rxe3 {[%emt 0:00:01]} Rxh4 {[%emt 0:00:09]} 40. Rxe6 {[%emt 0:00:07]} Nd4 {[%emt 0:00:21]} 41. Re8+ {[%emt 0:00:08]} Kg7 {[%emt 0:00:17]} 42. g3 {[%emt 0:00:33]} Rg4 {[%emt 0:00:14]} 43. Re7+ {[%emt 0:00:17]} Kf6 {[%emt 0:00:19]} 44. Rxb7 {[%emt 0:00:26]} Ne2+ {[%emt 0:00:21]} 45. Kh2 {[%emt 0:00:07]} Rxg3 {[%emt 0:00:11]} 46. Rb6+ {[%emt 0:00:07]} Ke5 {[%emt 0:00:16]} 47. Re6+ {[%emt 0:00:20]} Kxe6 {[%emt 0:00:06]} 0-1